[Event "FIDE Open Sachove Univerzity QCC"]
[Site "Ceske Budejovice"]
[Date "2020.07.08"]
[Round "8.1"]
[White "Titera, Libor"]
[Black "Svetly, Jiri"]
[Result "1-0"]
[ECO "B07"]
[WhiteElo "1843"]
[BlackElo "1835"]
[Annotator "NA"]
[PlyCount "127"]
[EventDate "2020.07.01"]
[EventType "swiss"]
[EventCountry "CZE"]
[SourceTitle "playchess.com"]
[Source "ChessBase"]
[SourceQuality "1"]
[TimeControl "40/5400+30:1800+30"]

1. e4 {[%emt 0:00:01]} d6 {[%emt 0:00:00]} 2. d4 {[%emt 0:00:50]} Nf6 {[%emt 0:00:00]} 3. f3 {[%emt 0:02:21]} g6 {[%emt 0:00:12]} 4. Be3 {[%emt 0:00:08]} Bg7 {[%emt 0:00:36]} 5. Nc3 {[%emt 0:00:57]} c6 {[%emt 0:00:22]} 6. Qd2 {[%emt 0:01:46]} b5 {[%emt 0:00:40]} 7. Bh6 {[%emt 0:05:39]} O-O {[%emt 0:02:17]} 8. Bxg7 {[%emt 0:00:20] B07: Pirc Defence: Miscellaneous Systems.} Kxg7 {[%emt 0:00:07]} 9. Nge2 {[%emt 0:04:31]} Nbd7 {[%emt 0:03:13]} 10. h4 {[%emt 0:02:09]} h5 $1 {[%emt 0:01:14]} 11. g4 {[%emt 0:05:15] [#]} e5 $146 {[%emt 0:04:01]} ({Predecessor:} 11... hxg4 12. fxg4 Nxg4 13. h5 Rh8 14. Rg1 Ndf6 15. hxg6 fxg6 16. Nf4 Qf8 17. Bh3 e5 18. Bxg4 Nxg4 19. dxe5 dxe5 {0-1 (63) Xin,R (1514)-Peters,T (1126) Schoenhagen 2009}) 12. g5 {[%emt 0:07:09]} Ne8 {[%emt 0:02:45]} 13. Bh3 {[%emt 0:02:37]} Nb6 {[%emt 0:01:02]} 14. b3 {[%emt 0:07:33]} Bxh3 {[%emt 0:04:26]} 15. Rxh3 {[%emt 0:00:08]} b4 {[%emt 0:00:09]} 16. Nd1 {[%emt 0:00:57]} a5 {[%emt 0:01:49]} 17. Ne3 {[%emt 0:00:46]} Nc7 {[%emt 0:00:21]} 18. c4 {[%emt 0:03:54]} bxc3 {[%emt 0:01:39]} (18... Qd7 $11 19. Rh1 Ne6) 19. Nxc3 {[%emt 0:03:35]} (19. Qxc3 $11 Nb5 20. Qxc6 Nxd4 21. Nxd4 exd4 22. Nc4) 19... Ne6 {[%emt 0:00:38]} 20. d5 {[%emt 0:04:46]} (20. Ne2 $15) 20... Nf4 {[%emt 0:00:38]} 21. Rh2 {[%emt 0:01:39]} c5 {[%emt 0:01:54]} 22. Ne2 {[%emt 0:02:36]} (22. Rb1 $15) 22... Nxe2 {[%emt 0:01:38]} 23. Qxe2 {[%emt 0:00:12]} a4 {[%emt 0:00:20]} 24. Rb1 {[%emt 0:03:21]} axb3 {[%emt 0:02:55]} 25. Rxb3 {[%emt 0:00:31]} Na4 {[%emt 0:04:56]} 26. Qb5 {[%emt 0:04:56]} Qa5+ {[%emt 0:02:43]} 27. Qxa5 {[%emt 0:02:19]} Rxa5 {[%emt 0:00:07]} 28. Nc4 {[%emt 0:01:20]} Ra6 {[%emt 0:00:20]} 29. Rb7 {[%emt 0:04:36]} Rd8 {[%emt 0:00:59]} (29... Kg8 $142 30. Rg2 Nc3) 30. Rc2 {[%emt 0:01:10]} Kf8 {[%emt 0:01:20]} 31. Kd2 {[%emt 0:00:40]} Ke8 {[%emt 0:00:32]} 32. Rc1 {[%emt 0:01:57]} Rd7 {[%emt 0:08:03]} 33. Rcb1 {[%emt 0:00:20]} Ra7 {[%emt 0:13:49]} 34. Rxa7 {[%emt 0:00:20]} Rxa7 {[%emt 0:00:12]} 35. Nxd6+ {[%emt 0:00:33]} Kd8 {[%emt 0:03:38]} 36. Nc4 {[%emt 0:02:08]} Kc7 {[%emt 0:03:10]} 37. Kd3 {[%emt 0:05:16]} Ra6 {[%emt 0:00:39]} 38. a3 {[%emt 0:00:44]} f6 {[%emt 0:02:47]} 39. d6+ {[%emt 0:04:18]} Kc6 {[%emt 0:13:34]} 40. gxf6 {[%emt 0:00:58]} Ra8 {[%emt 0:00:15]} 41. Rb3 {[%emt 0:31:42]} Rf8 {[%emt 0:30:22]} 42. f7 {[%emt 0:00:30]} Kd7 {[%emt 0:04:44]} 43. Rb7+ {[%emt 0:01:58]} Ke6 {[%emt 0:02:50]} 44. Ra7 {[%emt 0:01:01]} Rxf7 {[%emt 0:02:27]} 45. Rxf7 {[%emt 0:00:09]} Kxf7 {[%emt 0:00:22]} 46. Nxe5+ {[%emt 0:00:22]} Ke6 {[%emt 0:01:59]} 47. d7 {[%emt 0:01:04]} Ke7 {[%emt 0:00:13]} 48. Nxg6+ {[%emt 0:08:17]} Kxd7 {[%emt 0:00:34]} 49. Nf4 {[%emt 0:00:38]} Nb2+ {[%emt 0:01:06] [#]} 50. Kc3 $1 {[%emt 0:00:53]} Nd1+ {[%emt 0:02:14]} 51. Kc4 {[%emt 0:00:28]} Kc6 {[%emt 0:00:18]} 52. a4 {[%emt 0:00:00]} Ne3+ {[%emt 0:00:00]} 53. Kd3 {[%emt 0:00:00]} Nd1 {[%emt 0:00:00]} 54. Nxh5 {[%emt 0:00:00]} Nb2+ {[%emt 0:00:00]} 55. Kc2 {[%emt 0:00:00]} Nxa4 {[%emt 0:00:00]} 56. Ng3 {[%emt 0:00:00]} Kd6 {[%emt 0:00:00]} 57. h5 {[%emt 0:00:00]} Ke6 {[%emt 0:00:00]} 58. f4 {[%emt 0:00:00]} (58. h6 $142 Kf7 59. e5) 58... c4 {[%emt 0:00:00]} 59. e5 {[%emt 0:00:00]} Nc5 {[%emt 0:00:00]} 60. Kc3 {[%emt 0:00:00]} Nd3 {[%emt 0:00:00]} 61. Ne2 {[%emt 0:00:00]} (61. f5+ $142 Kxe5 62. h6 Kf4 63. Nh5+ Kg4 64. h7 Kg5 65. f6 Nb2 66. h8=Q) 61... Kf5 {[%emt 0:00:00]} 62. Kxc4 {[%emt 0:00:00]} Nxe5+ {[%emt 0:00:00]} 63. fxe5 {[%emt 0:00:00]} Kxe5 {[%emt 0:00:00]} 64. Ng3 {[%emt 0:00:00]} 1-0

[Event "FIDE Open Sachove Univerzity QCC"]
[Site "Ceske Budejovice"]
[Date "2020.07.08"]
[Round "8.1"]
[White "Gorej, Vojtech"]
[Black "Policar, Martin"]
[Result "0-1"]
[ECO "B02"]
[WhiteElo "1395"]
[BlackElo "1258"]
[Annotator "NA"]
[PlyCount "62"]
[EventDate "2020.07.01"]
[EventType "swiss"]
[EventCountry "CZE"]
[SourceTitle "playchess.com"]
[Source "ChessBase"]
[SourceQuality "1"]
[TimeControl "40/5400+30:1800+30"]

1. e4 {[%emt 0:00:00]} Nf6 {[%emt 0:00:00]} 2. e5 {[%emt 0:00:37]} Nd5 {[%emt 0:00:20]} 3. c4 {[%emt 0:00:50]} Nb6 {[%emt 0:00:39]} 4. d4 {[%emt 0:02:47]} Nc6 {[%emt 0:00:51]} 5. d5 {[%emt 0:06:57]} Nxe5 {[%emt 0:15:24]} 6. c5 {[%emt 0:00:42]} Nbc4 {[%emt 0:00:58]} 7. f4 {[%emt 0:01:01]} c6 {[%emt 0:08:18]} 8. fxe5 {[%emt 0:00:40]} Nxe5 {[%emt 0:02:49]} 9. Nc3 {[%emt 0:01:14]} g6 {[%emt 0:00:54]} 10. Bf4 {[%emt 0:00:40]} Bg7 {[%emt 0:01:11]} 11. Bxe5 {[%emt 0:01:51]} Bxe5 {[%emt 0:00:23]} 12. dxc6 {[%emt 0:01:46]} bxc6 {[%emt 0:01:17]} 13. Nf3 {[%emt 0:01:56]} Bg7 {[%emt 0:00:52]} 14. Qb3 {[%emt 0:02:01]} Qc7 {[%emt 0:01:18]} 15. Bc4 {[%emt 0:02:18]} O-O {[%emt 0:01:42]} 16. O-O {[%emt 0:01:54]} Rb8 {[%emt 0:01:42]} 17. Qc2 {[%emt 0:02:52]} Qa5 {[%emt 0:01:22]} 18. Kh1 {[%emt 0:04:17]} Qxc5 {[%emt 0:01:30]} 19. Bd3 {[%emt 0:07:01]} d5 {[%emt 0:07:34]} 20. Na4 {[%emt 0:04:00]} Qd6 {[%emt 0:08:42]} 21. Rae1 {[%emt 0:02:28]} e5 {[%emt 0:02:11]} 22. Be2 {[%emt 0:05:16]} Bf5 {[%emt 0:02:20]} 23. Qd2 {[%emt 0:01:32]} Rb4 {[%emt 0:02:23]} 24. b3 {[%emt 0:00:49]} e4 {[%emt 0:02:48]} 25. Nh4 {[%emt 0:01:25]} e3 {[%emt 0:06:30]} 26. Qxe3 {[%emt 0:02:12]} Rxh4 {[%emt 0:00:49]} 27. g3 {[%emt 0:03:53]} Be4+ {[%emt 0:02:41]} 28. Bf3 {[%emt 0:00:45]} Qxg3 {[%emt 0:00:19]} 29. Re2 {[%emt 0:03:06]} Bd4 {[%emt 0:00:57]} 30. Qxd4 {[%emt 0:01:20]} Bxf3+ {[%emt 0:00:18]} 31. Rxf3 {[%emt 0:00:21]} Qxf3+ {[%emt 0:00:31]} 0-1

[Event "FIDE Open Sachove Univerzity QCC"]
[Site "Ceske Budejovice"]
[Date "2020.07.08"]
[Round "8.2"]
[White "Hlavsa, Filip"]
[Black "Zelbova, Lada"]
[Result "1-0"]
[ECO "B24"]
[WhiteElo "1886"]
[BlackElo "1637"]
[Annotator "NA"]
[PlyCount "75"]
[EventDate "2020.07.01"]
[EventType "swiss"]
[EventCountry "CZE"]
[SourceTitle "playchess.com"]
[Source "ChessBase"]
[SourceQuality "1"]
[TimeControl "40/5400+30:1800+30"]

1. e4 {[%emt 0:02:31]} c5 {[%emt 0:00:00]} 2. Nc3 {[%emt 0:00:13]} e6 {[%emt 0:00:00]} 3. f4 {[%emt 0:01:02]} a6 {[%emt 0:00:00]} 4. g3 {[%emt 0:03:42]} d5 {[%emt 0:03:24]} 5. e5 {[%emt 0:02:04]} Nc6 {[%emt 0:01:21]} 6. Bg2 {[%emt 0:00:06]} g6 {[%emt 0:00:49]} 7. Nf3 {[%emt 0:00:51]} Bg7 {[%emt 0:01:23]} 8. d3 {[%emt 0:02:14]} Nge7 {[%emt 0:01:07]} 9. O-O {[%emt 0:01:16]} h5 {[%emt 0:08:15] B24: Closed Sicilian: 3 g3 sidelines.} 10. h3 {[%emt 0:02:30]} Nf5 {[%emt 0:02:53]} 11. Ne2 {[%emt 0:01:10]} b5 {[%emt 0:07:26]} 12. Bd2 {[%emt 0:05:49] [#]} Bb7 $146 {[%emt 0:03:46]} ({Predecessor:} 12... Qb6 13. c3 Bb7 14. Qe1 O-O-O 15. Qf2 d4 16. g4 hxg4 17. hxg4 Nh6 18. cxd4 Nxg4 {1-0 (62) Kovar,J (2045)-Bednar,M (2225) Prague 2010}) 13. Ng5 {[%emt 0:03:40]} Bh6 {[%emt 0:11:16]} 14. Nf3 {[%emt 0:01:16]} Bg7 {[%emt 0:02:33]} 15. Qc1 {[%emt 0:03:25]} Rc8 {[%emt 0:05:50]} 16. Be1 {[%emt 0:03:18]} d4 {[%emt 0:05:12]} 17. Bf2 {[%emt 0:01:52]} Nb4 {[%emt 0:09:25]} 18. a3 {[%emt 0:06:49]} Nd5 {[%emt 0:00:42]} 19. Ng5 {[%emt 0:00:08]} Qc7 {[%emt 0:09:32]} ({Black should play} 19... Qe7 $15) 20. Ne4 {[%emt 0:02:44]} Kf8 {[%emt 0:06:51]} (20... O-O $17) 21. Re1 {[%emt 0:04:50]} Nde3 {[%emt 0:04:35]} 22. Bf3 {[%emt 0:00:48]} Nd5 {[%emt 0:04:38]} 23. c3 {[%emt 0:05:59]} Nde3 {[%emt 0:01:35]} 24. Qd2 {[%emt 0:09:38]} Bxe4 {[%emt 0:03:25]} 25. Bxe4 {[%emt 0:00:36]} Ke7 {[%emt 0:01:14]} 26. cxd4 {[%emt 0:13:07]} cxd4 {[%emt 0:00:31]} 27. Rac1 {[%emt 0:00:07]} Qd7 {[%emt 0:01:59]} 28. Qb4+ {[%emt 0:02:31]} Kd8 {[%emt 0:01:05]} 29. Rxc8+ {[%emt 0:04:14]} Kxc8 {[%emt 0:00:29]} 30. Qa5 {[%emt 0:01:32]} Qa7 {[%emt 0:01:06]} 31. Rc1+ {[%emt 0:02:05]} Kb8 {[%emt 0:00:05]} 32. Rc6 {[%emt 0:00:39]} Nd5 {[%emt 0:02:12]} 33. Bxd5 {[%emt 0:01:33]} exd5 {[%emt 0:00:10]} 34. Rxa6 {[%emt 0:00:07]} Qc5 {[%emt 0:00:51]} 35. Ra8+ {[%emt 0:00:10]} Kb7 {[%emt 0:00:07]} 36. Qa6+ {[%emt 0:01:29]} Kc7 {[%emt 0:00:12]} 37. Ra7+ {[%emt 0:00:44]} Kd8 {[%emt 0:00:19]} 38. Qb7 $18 {[%emt 0:00:30]} 1-0

[Event "FIDE Open Sachove Univerzity QCC"]
[Site "Ceske Budejovice"]
[Date "2020.07.08"]
[Round "8.3"]
[White "Svanda, Adam"]
[Black "Kotleska, Roman"]
[Result "0-1"]
[ECO "A34"]
[WhiteElo "1870"]
[BlackElo "1521"]
[Annotator "NA"]
[PlyCount "114"]
[EventDate "2020.07.01"]
[EventType "swiss"]
[EventCountry "CZE"]
[SourceTitle "playchess.com"]
[Source "ChessBase"]
[SourceQuality "1"]
[TimeControl "40/5400+30:1800+30"]

1. c4 {[%emt 0:00:00]} c5 {[%emt 0:00:00]} 2. Nc3 {[%emt 0:00:10]} b6 {[%emt 0:02:15]} 3. d4 {[%emt 0:02:31]} cxd4 {[%emt 0:00:56]} 4. Qxd4 {[%emt 0:00:11]} Bb7 {[%emt 0:01:23]} 5. Nf3 {[%emt 0:02:38]} Nf6 {[%emt 0:02:25]} 6. b3 {[%emt 0:06:39] A34: Symmetrical English: 2 Nc3, lines with ...d5.} d6 {[%emt 0:01:55]} 7. Bb2 {[%emt 0:00:42]} e6 {[%emt 0:04:30]} 8. e3 {[%emt 0:04:07]} Be7 {[%emt 0:00:54]} 9. Be2 {[%emt 0:01:01]} a6 {[%emt 0:03:37]} 10. O-O {[%emt 0:01:44]} O-O {[%emt 0:03:44] [#]} 11. Rfd1 $146 {[%emt 0:04:26]} ({Predecessor:} 11. Rac1 Nbd7 12. Qd1 Qc7 13. h3 Rac8 14. Re1 Qb8 15. Bf1 Qa8 16. Ba3 Nc5 17. Qe2 {0-1 (41) Scharapov,Y (1698)-Golubov,S (2476) Porto Carras 2018}) 11... Qc7 {[%emt 0:01:56]} 12. e4 {[%emt 0:02:00]} Nbd7 {[%emt 0:02:13]} 13. Ne1 {[%emt 0:02:00]} Nc5 {[%emt 0:01:06]} 14. f3 {[%emt 0:00:32]} Rfd8 {[%emt 0:02:52]} 15. Rac1 {[%emt 0:03:21]} d5 $1 {[%emt 0:05:14]} 16. Nxd5 {[%emt 0:13:00]} ({Avoid the trap} 16. exd5 $2 {[#]} Nxb3 $1 {[%mdl 576] Clearance} 17. axb3 Bc5 $19) 16... exd5 {[%emt 0:02:06]} 17. cxd5 {[%emt 0:00:12]} Qf4 {[%emt 0:13:35]} 18. b4 {[%emt 0:05:38]} Na4 {[%emt 0:05:47]} 19. Nd3 {[%emt 0:00:42]} Qd6 {[%emt 0:00:32]} 20. e5 {[%emt 0:06:49]} Qxd5 {[%emt 0:00:41]} 21. exf6 {[%emt 0:00:27]} Nxb2 {[%emt 0:10:43]} 22. Qxd5 {[%emt 0:01:07]} Rxd5 {[%emt 0:00:30]} 23. Nxb2 {[%emt 0:04:09]} Bxf6 {[%emt 0:02:53]} 24. Rc7 {[%emt 0:05:00]} Rxd1+ {[%emt 0:01:55]} 25. Nxd1 {[%emt 0:00:24]} Bd5 {[%emt 0:00:33]} 26. Nc3 {[%emt 0:03:24]} Be6 {[%emt 0:03:40]} 27. Ne4 {[%emt 0:02:13]} Be5 {[%emt 0:01:16]} 28. Rc6 {[%emt 0:03:52]} Bd5 {[%emt 0:00:54]} 29. Rc2 {[%emt 0:01:16]} h6 {[%emt 0:01:06]} 30. a3 {[%emt 0:00:58]} Kf8 {[%emt 0:00:44]} 31. g3 {[%emt 0:01:57]} a5 {[%emt 0:00:24]} 32. b5 {[%emt 0:01:36]} Ke7 {[%emt 0:00:31]} 33. Kf2 {[%emt 0:01:59]} Rd8 {[%emt 0:02:13]} 34. Rd2 {[%emt 0:04:32]} f5 {[%emt 0:01:41]} 35. f4 {[%emt 0:02:26]} Ba1 {[%emt 0:01:16]} 36. Rd1 {[%emt 0:02:06]} Bb2 {[%emt 0:00:53]} 37. Nd2 {[%emt 0:01:31]} Bxa3 {[%emt 0:00:31]} 38. Nc4 {[%emt 0:00:32]} Bc5+ {[%emt 0:04:03]} 39. Ke1 {[%emt 0:00:35]} Rd7 {[%emt 0:03:22]} 40. Ne5 {[%emt 0:01:07]} Rd6 {[%emt 0:00:17]} 41. Nc4 {[%emt 0:32:42]} Bb4+ {[%emt 0:31:48]} 42. Kf2 {[%emt 0:01:58]} Bxc4 {[%emt 0:00:28]} 43. Rxd6 {[%emt 0:02:44]} Kxd6 {[%emt 0:00:12]} 44. Bxc4 {[%emt 0:00:08]} Kc5 {[%emt 0:00:12]} 45. Bd3 {[%emt 0:01:25]} (45. Be6 $142) 45... a4 {[%emt 0:00:20]} 46. Bc2 {[%emt 0:00:00]} Kxb5 {[%emt 0:00:00]} 47. Ke2 {[%emt 0:00:00]} Bc5 {[%emt 0:00:00]} 48. Bxf5 {[%emt 0:00:00]} Kb4 {[%emt 0:00:00]} 49. Kd2 {[%emt 0:00:00]} Kb3 {[%emt 0:00:00]} 50. Kc1 {[%emt 0:00:00]} Bg1 {[%emt 0:00:00]} 51. h4 $2 {[%emt 0:00:00]} (51. Bc2+ Ka3 52. Bd3) 51... Bh2 {[%emt 0:00:00]} 52. g4 {[%emt 0:00:00]} Bxf4+ {[%emt 0:00:00]} 53. Kb1 {[%emt 0:00:00]} b5 {[%emt 0:00:00]} 54. Be6+ {[%emt 0:00:00]} Ka3 {[%emt 0:00:00]} 55. Ka1 {[%emt 0:00:00]} b4 {[%emt 0:00:00]} 56. Bf7 {[%emt 0:00:00]} b3 {[%emt 0:00:00]} 57. Be6 {[%emt 0:00:00]} Kb4 {[%emt 0:00:00]} 0-1

[Event "FIDE Open Sachove Univerzity QCC"]
[Site "Ceske Budejovice"]
[Date "2020.07.08"]
[Round "8.3"]
[White "Bastyr, Pavel"]
[Black "Komarek, Tobias"]
[Result "1-0"]
[ECO "D53"]
[WhiteElo "1439"]
[BlackElo "1246"]
[Annotator "NA"]
[PlyCount "131"]
[EventDate "2020.07.01"]
[EventType "swiss"]
[EventCountry "CZE"]
[SourceTitle "playchess.com"]
[Source "ChessBase"]
[SourceQuality "1"]
[TimeControl "40/5400+30:1800+30"]

1. d4 {[%emt 0:00:00]} d5 {[%emt 0:00:00]} 2. c4 {[%emt 0:00:00]} e6 {[%emt 0:00:00]} 3. Nc3 {[%emt 0:00:00]} Nf6 {[%emt 0:00:00]} 4. Bg5 {[%emt 0:00:00]} Be7 {[%emt 0:00:06]} 5. Nf3 {[%emt 0:00:00]} h6 {[%emt 0:00:08]} 6. Bf4 {[%emt 0:00:02]} a6 {[%emt 0:00:39]} 7. Ne5 {[%emt 0:03:29]} Nbd7 {[%emt 0:01:09]} 8. e3 {[%emt 0:00:05]} O-O {[%emt 0:01:34]} 9. Be2 {[%emt 0:02:53]} c5 {[%emt 0:02:31]} 10. dxc5 {[%emt 0:04:17]} Nxc5 {[%emt 0:00:29]} 11. cxd5 {[%emt 0:04:03]} Nxd5 {[%emt 0:02:21]} 12. Nxd5 {[%emt 0:00:13]} Qxd5 {[%emt 0:00:49]} 13. Bf3 {[%emt 0:03:08]} Qxd1+ {[%emt 0:01:41]} 14. Rxd1 {[%emt 0:00:08]} Rd8 {[%emt 0:02:51]} 15. O-O {[%emt 0:00:13]} f6 {[%emt 0:14:34]} 16. Ng6 {[%emt 0:01:47]} Kf7 {[%emt 0:00:41]} 17. Nxe7 {[%emt 0:02:15]} Kxe7 {[%emt 0:00:21]} 18. Rxd8 {[%emt 0:02:02]} Kxd8 {[%emt 0:00:42]} 19. Rd1+ {[%emt 0:00:05]} Nd7 {[%emt 0:01:59]} 20. Bd6 {[%emt 0:02:28]} Ra7 {[%emt 0:12:51]} 21. Bf8 {[%emt 0:00:10]} g6 {[%emt 0:03:23]} 22. Bxh6 {[%emt 0:03:33]} b5 {[%emt 0:01:18]} 23. Bf4 {[%emt 0:02:23]} e5 {[%emt 0:01:02]} 24. Bg3 {[%emt 0:00:06]} Rc7 {[%emt 0:02:12]} 25. Be4 {[%emt 0:00:35]} g5 {[%emt 0:07:47]} 26. Bf5 {[%emt 0:01:45]} Ke7 {[%emt 0:05:38]} 27. f4 {[%emt 0:02:13]} gxf4 {[%emt 0:01:13]} 28. exf4 {[%emt 0:00:16]} exf4 {[%emt 0:01:12]} 29. Bxf4 {[%emt 0:00:11]} Rc4 {[%emt 0:01:21]} 30. Bd6+ {[%emt 0:07:09]} Kf7 {[%emt 0:04:31]} 31. b3 {[%emt 0:03:55]} Rh4 {[%emt 0:00:45]} 32. Bg3 {[%emt 0:00:10]} Rh5 {[%emt 0:01:36]} 33. Bxd7 {[%emt 0:00:13]} Bxd7 {[%emt 0:00:21]} 34. Rxd7+ {[%emt 0:00:06]} Ke6 {[%emt 0:00:08]} 35. Rd6+ {[%emt 0:00:19]} Ke7 {[%emt 0:00:47]} 36. Rxa6 {[%emt 0:00:11]} Rd5 {[%emt 0:00:22]} 37. Ra7+ {[%emt 0:00:44]} Ke6 {[%emt 0:00:16]} 38. Ra6+ {[%emt 0:03:50]} Ke7 {[%emt 0:00:16]} 39. Be1 {[%emt 0:02:21]} Re5 {[%emt 0:02:03]} 40. Bc3 {[%emt 0:02:50]} Rf5 {[%emt 0:01:05]} 41. Bb4+ {[%emt 0:31:08]} Kd7 {[%emt 0:30:38]} 42. Rd6+ {[%emt 0:00:23]} Kc7 {[%emt 0:00:19]} 43. Rd3 {[%emt 0:02:53]} Kc6 {[%emt 0:00:55]} 44. Bc3 Kc5 45. Rf3 {[%emt 0:02:02]} Rd5 {[%emt 0:00:54]} 46. Rxf6 {[%emt 0:01:33]} b4 {[%emt 0:00:14]} 47. Ba1 {[%emt 0:01:16]} Rd1+ {[%emt 0:00:35]} 48. Rf1 {[%emt 0:00:09]} Rd5 {[%emt 0:00:14]} 49. Rc1+ {[%emt 0:01:17]} Kb5 {[%emt 0:00:19]} 50. Bf6 {[%emt 0:02:06]} Rf5 {[%emt 0:01:23]} 51. Rf1 {[%emt 0:00:20]} Rd5 {[%emt 0:00:26]} 52. h4 {[%emt 0:00:43]} Rd2 {[%emt 0:00:22]} 53. Rf2 {[%emt 0:00:14]} Rd1+ {[%emt 0:00:08]} 54. Kh2 {[%emt 0:00:09]} Rd5 {[%emt 0:00:08]} 55. Kh3 {[%emt 0:00:59]} Rd3+ {[%emt 0:00:30]} 56. Kg4 {[%emt 0:00:08]} Rd6 {[%emt 0:00:19]} 57. Kg5 {[%emt 0:01:19]} Kc6 {[%emt 0:00:38]} 58. h5 {[%emt 0:00:31]} Re6 {[%emt 0:00:20]} 59. h6 {[%emt 0:00:28]} Rd6 {[%emt 0:00:15]} 60. h7 {[%emt 0:00:16]} Re6 {[%emt 0:00:05]} 61. h8=Q {[%emt 0:05:52]} Rd6 {[%emt 0:00:04]} 62. Qc8+ {[%emt 0:00:28]} Kb6 {[%emt 0:00:11]} 63. Bd8+ {[%emt 0:00:22]} Kb5 {[%emt 0:00:18]} 64. Rf5+ {[%emt 0:00:11]} Rd5 {[%emt 0:00:06]} 65. Qb7+ {[%emt 0:00:36]} Kc5 {[%emt 0:00:10]} 66. Qxd5# {[%emt 0:00:27]} 1-0

[Event "FIDE Open Sachove Univerzity QCC"]
[Site "Ceske Budejovice"]
[Date "2020.07.08"]
[Round "8.4"]
[White "Berka, Lubos"]
[Black "Chval, Petr"]
[Result "0-1"]
[ECO "B26"]
[WhiteElo "1718"]
[BlackElo "1926"]
[Annotator "ChessBase"]
[PlyCount "62"]
[EventDate "2020.07.01"]
[EventType "swiss"]
[EventCountry "CZE"]
[SourceTitle "playchess.com"]
[Source "ChessBase"]
[SourceQuality "1"]
[TimeControl "40/5400+30:1800+30"]

1. e4 {[%emt 0:00:00]} c5 {[%emt 0:01:34]} 2. Nc3 {[%emt 0:00:05]} e6 {[%emt 0:00:10]} 3. g3 {[%emt 0:00:18]} Nc6 {[%emt 0:00:10]} 4. Bg2 {[%emt 0:00:07]} g6 {[%emt 0:00:06]} 5. Nge2 {[%emt 0:00:18]} Bg7 {[%emt 0:00:06]} 6. O-O {[%emt 0:00:15]} Nge7 {[%emt 0:00:15]} 7. d3 {[%emt 0:00:12]} O-O {[%emt 0:00:44]} 8. Be3 {[%emt 0:02:11]} Nd4 {[%emt 0:00:39]} 9. Qd2 {[%emt 0:01:49]} d6 {[%emt 0:01:23]} 10. f4 {[%emt 0:01:52]} Rb8 {[%emt 0:00:00]} 11. a3 {[%emt 0:12:28]} b6 {[%emt 0:00:00]} 12. g4 {[%emt 0:00:30]} Nxe2+ {[%emt 0:13:32]} 13. Qxe2 {[%emt 0:02:08]} f5 {[%emt 0:00:19]} 14. exf5 {[%emt 0:06:25]} exf5 {[%emt 0:04:37]} 15. g5 {[%emt 0:00:21]} d5 {[%emt 0:01:53]} 16. Bf2 {[%emt 0:05:44]} d4 {[%emt 0:00:55]} 17. Rae1 {[%emt 0:06:00]} Kf7 {[%emt 0:10:39]} 18. Nd1 {[%emt 0:05:55]} Nd5 {[%emt 0:06:46]} 19. c4 {[%emt 0:01:40]} Nxf4 {[%emt 0:01:58]} 20. Bd5+ {[%emt 0:01:37]} Nxd5 {[%emt 0:00:27]} 21. cxd5 {[%emt 0:00:08]} Qxd5 {[%emt 0:01:12]} 22. Qe7+ {[%emt 0:03:14]} Kg8 {[%emt 0:00:22]} 23. Bg3 {[%emt 0:03:08]} Bb7 {[%emt 0:16:11]} 24. Qe6+ {[%emt 0:01:45]} Qxe6 {[%emt 0:00:03]} 25. Rxe6 {[%emt 0:00:12]} Rbe8 {[%emt 0:00:16]} 26. Rfe1 {[%emt 0:00:38]} Kf7 {[%emt 0:03:19]} 27. Rxe8 {[%emt 0:00:07]} Rxe8 {[%emt 0:00:04]} 28. Rxe8 {[%emt 0:00:10]} Kxe8 {[%emt 0:00:06]} 29. Bb8 {[%emt 0:00:06]} Kd7 {[%emt 0:06:55]} 30. Bxa7 {[%emt 0:00:35]} Kc7 {[%emt 0:01:11]} 31. a4 {[%emt 0:00:10]} Bf3 {[%emt 0:00:25]} 0-1

[Event "FIDE Open Sachove Univerzity QCC"]
[Site "Ceske Budejovice"]
[Date "2020.07.08"]
[Round "8.4"]
[White "Krautschneider, Daniel Jan"]
[Black "Skalicky, Jindrich"]
[Result "1-0"]
[ECO "B47"]
[WhiteElo "1374"]
[BlackElo "1165"]
[Annotator "NA"]
[PlyCount "85"]
[EventDate "2020.07.01"]
[EventType "swiss"]
[EventCountry "CZE"]
[SourceTitle "playchess.com"]
[Source "ChessBase"]
[SourceQuality "1"]
[TimeControl "40/5400+30:1800+30"]

1. e4 {[%emt 0:00:00]} c5 {[%emt 0:00:00]} 2. Nf3 {[%emt 0:00:09]} e6 {[%emt 0:00:00]} 3. d4 {[%emt 0:00:18]} cxd4 {[%emt 0:00:00]} 4. Nxd4 {[%emt 0:00:04]} Nc6 {[%emt 0:00:00]} 5. Nc3 {[%emt 0:00:21]} Qc7 {[%emt 0:00:04]} 6. Ndb5 {[%emt 0:00:46]} Qb8 {[%emt 0:00:13]} 7. Be3 {[%emt 0:04:36]} a6 {[%emt 0:03:14]} 8. Nd4 {[%emt 0:00:25]} Be7 {[%emt 0:00:31]} 9. Qd2 {[%emt 0:00:34]} Nf6 {[%emt 0:00:42]} 10. O-O-O {[%emt 0:00:56]} O-O {[%emt 0:00:19]} 11. f3 {[%emt 0:00:10]} Rd8 {[%emt 0:00:51]} 12. g4 {[%emt 0:01:56]} Ne8 {[%emt 0:03:27]} 13. h4 {[%emt 0:00:36]} Nxd4 {[%emt 0:01:51]} 14. Bxd4 {[%emt 0:00:18]} b5 {[%emt 0:03:29]} 15. g5 {[%emt 0:05:30]} Bb4 {[%emt 0:05:06]} 16. Qe3 {[%emt 0:07:14]} Bb7 {[%emt 0:01:25]} 17. h5 {[%emt 0:00:33]} Bxc3 {[%emt 0:04:31]} 18. Bxc3 {[%emt 0:02:04]} Qc7 {[%emt 0:01:33]} 19. Qd2 {[%emt 0:01:02]} Qc6 {[%emt 0:04:38]} 20. g6 {[%emt 0:01:47]} h6 {[%emt 0:03:58]} 21. gxf7+ {[%emt 0:00:35]} Kxf7 {[%emt 0:01:04]} 22. Qf4+ {[%emt 0:01:27]} Ke7 {[%emt 0:02:17]} 23. Rg1 {[%emt 0:02:24]} Rdc8 {[%emt 0:00:47]} 24. Bd3 {[%emt 0:02:17]} a5 {[%emt 0:02:21]} 25. Bxg7 {[%emt 0:03:03]} Nxg7 {[%emt 0:04:16]} 26. Rxg7+ {[%emt 0:01:09]} Kd8 {[%emt 0:02:12]} 27. Rg8+ {[%emt 0:01:06]} Ke7 {[%emt 0:00:42]} 28. Qh4+ {[%emt 0:03:51]} Kd6 {[%emt 0:02:13]} 29. Bxb5+ {[%emt 0:00:30]} Kc7 {[%emt 0:00:46]} 30. Bxc6 {[%emt 0:00:08]} Bxc6 {[%emt 0:00:19]} 31. Rxc8+ {[%emt 0:00:17]} Rxc8 {[%emt 0:00:21]} 32. Qf4+ {[%emt 0:00:34]} Kb6 {[%emt 0:00:36]} 33. Qxh6 {[%emt 0:00:08]} Rg8 {[%emt 0:00:47]} 34. Qh7 {[%emt 0:01:08]} Rg2 {[%emt 0:00:18]} 35. Qg6 {[%emt 0:00:54]} Rh2 {[%emt 0:01:14]} 36. h6 {[%emt 0:00:19]} Ba4 {[%emt 0:00:24]} 37. b3 {[%emt 0:00:34]} Bb5 {[%emt 0:00:19]} 38. c4 {[%emt 0:00:42]} Bxc4 {[%emt 0:00:29]} 39. bxc4 {[%emt 0:00:12]} Rxa2 {[%emt 0:00:17]} 40. Rxd7 {[%emt 0:00:06]} Kc5 {[%emt 0:01:05]} 41. Qxe6 {[%emt 0:31:20]} Kb4 {[%emt 0:30:27]} 42. Rd3 {[%emt 0:00:25]} Kc5 {[%emt 0:02:15]} 43. Qd6+ 1-0